fUSD/lending_fUSD_20250421
["ID","MTS","AMOUNT","RATE_DAILY","PERIOD"]
[358558187,1745260232739,-150.0,0.00019836,2]
[358558188,1745260232749,-150.0,0.00019838,2]
[358558189,1745260232758,-150.0,0.00019839,2]
[358558190,1745260232768,-200.0,0.0001984,2]
[358558191,1745260232778,-150.0,0.00019842,2]
[358558192,1745260232787,-150.0,0.00019845,2]
[358558193,1745260232796,-150.0,0.00019849,2]
[358558194,1745260232807,-150.0,0.0001985,2]
[358558195,1745260232817,-150.0,0.0001985,2]
[358558196,1745260232826,-150.0,0.0001985,2]
[358558197,1745260232835,-150.0,0.00019852,2]
[358558198,1745260232845,-150.0,0.00019853,2]
[358558199,1745260232854,-150.0,0.0001986,2]
[358558200,1745260232864,-150.0,0.00019861,2]
[358558201,1745260232873,-150.0,0.00019865,2]
[358558202,1745260232882,-150.0,0.00019866,2]
[358558203,1745260232891,-150.0,0.00019867,2]
[358558204,1745260232901,-150.0,0.00019869,2]
[358558205,1745260232910,-150.0,0.00019872,2]
[358558206,1745260232920,-150.0,0.00019877,2]
[358558207,1745260232929,-150.0,0.0001988,2]
[358558208,1745260232939,-150.0,0.00019881,2]
[358558209,1745260232948,-25345.86832117,0.00019886,2]
[358558210,1745260232968,-739.489561,0.00019886,2]
[358558211,1745260232980,-2098.41411783,0.00019886,2]
[358558212,1745260232991,-500.0,0.00019886,2]
[358558213,1745260233000,-322.36022293,0.00019886,2]
[358558214,1745260233011,-677.63977707,0.00019886,2]
[358558215,1745260233022,-372.36022293,0.00019886,2]
[358558216,1745260233036,-1577.36276331,0.00019886,2]
[358558222,1745260237635,-500.0,0.00019628,2]
[358558224,1745260237644,-15.55170183,0.00019628,2]
[358558225,1745260237743,-246.46429473,0.00019628,2]
[358558226,1745260237752,-1535.57970527,0.00019886,2]
[358558227,1745260237764,-1737.6,0.00019886,2]
[358558228,1745260237777,-12073.70430849,0.00019886,2]
[358558229,1745260237786,-2500.0,0.00019886,2]
[358558230,1745260237796,-2500.0,0.00019886,2]
[358558231,1745260237806,-1000.0,0.00019886,2]
[358558232,1745260237816,-281.3369,0.000199,2]
[358558233,1745260237826,-867.8621,0.000199,2]
[358558234,1745260237836,-767.157,0.000199,2]
[358558235,1745260237846,-896.7283,0.000199,2]
[358558236,1745260237856,-16236.55109958,0.000199,2]
[358558237,1745260237865,-781.90256628,0.000199,2]
[358558238,1745260237875,-2418.7130734,0.000199,2]
[358558239,1745260237885,-2500.0,0.000199,2]
[358558240,1745260237895,-453.7,0.00019911,2]
[358558241,1745260237905,-389.42,0.00019935,2]
[358558242,1745260237915,-165.63823045,0.00019973,2]
[358558243,1745260237925,-500.0,0.00019973,2]
[358558244,1745260237934,-500.0,0.00019973,2]
[358558245,1745260237944,-153.098309,0.00019986,2]
[358558246,1745260237954,-4470.764648,0.00019986,2]
[358558247,1745260237964,-15151.5836207,0.00019986,2]
[358558248,1745260237974,-161282.3348358,0.00019986,2]
[358558249,1745260237983,-603.48047766,0.0001999,2]
[358558250,1745260237993,-603.48047766,0.0001999,2]
[358558251,1745260238003,-603.48047766,0.0001999,2]
[358558252,1745260238013,-300.0,0.00019999,2]
[358558254,1745260238025,-500.0,0.00019999,2]
[358558256,1745260238034,-300.0,0.00019999,2]
[358558258,1745260238043,-500.0,0.00019999,2]
[358558260,1745260238052,-500.0,0.00019999,2]
[358558262,1745260238062,-300.0,0.00019999,2]
[358558264,1745260238071,-500.0,0.00019999,2]
[358558266,1745260238081,-500.0,0.00019999,2]
[358558268,1745260238090,-500.0,0.00019999,2]
[358558270,1745260238100,-500.0,0.00019999,2]
[358558272,1745260238109,-32645.47346832,0.00019999,2]
[358558274,1745260238119,-234.99380532,0.0002,2]
[358558276,1745260238128,-330517.84024996,0.0002,2]
[358558277,1745260238138,-3950.0,0.0002,2]
[358558279,1745260238147,-1008.68423297,0.0002,2]
[358558281,1745260238156,-1206862.90076251,0.0002,2]
[358558284,1745260238168,-2948658.99863649,0.0002,2]
[358558286,1745260238179,-3860.60934629,0.0002,2]
[358558290,1745260238233,-500.0,0.0002,2]
[358558294,1745260238284,-1723.86886239,0.0002,2]
[358558308,1745260239912,-1219.46520261,0.0002,2]
[358558309,1745260239924,-366.6811051,0.0002,2]
[358558310,1745260239936,-1305.13660987,0.0002,2]
[358558311,1745260240071,-173998.3571949,0.0002,2]
[358558312,1745260240083,-2052.64247345,0.0002,2]
[358558313,1745260240126,-5039185.49465836,0.0002,2]
[358558314,1745260240383,-4634.66521665,0.0002,2]
[358558315,1745260240395,-1497.7826597,0.0002,2]
[358558327,1745260246182,-8728.10648724,0.0002,2]
[358558328,1745260621923,250.0,0.00019971,7]
[358558329,1745260726555,-150.0,0.00019812,2]
[358558330,1745260726577,-138.6,0.00019826,2]
[358558332,1745261017906,763.68,0.00017588,2]
[358558333,1745261186548,-747.57,0.00019259,2]
[358558334,1745261246938,-200.0,0.00019259,2]
[358558335,1745261326193,-161.18107741,0.00019231,2]
[358558336,1745261339646,-168.24340646,0.00019155,2]
[358558337,1745261342465,-31.75659354,0.00019155,2]
[358558338,1745261342488,-268.24340646,0.0001923,2]
[358558342,1745261405399,-168.243407,0.00019134,2]
[358558343,1745261405422,-22.33362604,0.00019182,2]
[358558344,1745261431950,-227.66637396,0.00019182,2]
[358558345,1745261431959,-4479.65965524,0.00019231,2]
[358558346,1745261431970,-5633.44926735,0.00019231,2]
[358558347,1745261431980,-1000.0,0.00019274,2]
[358558348,1745261431989,-150.0,0.00019322,2]
[358558349,1745261431998,-168.55073265,0.00019572,2]
[358558371,1745261437987,-131.44926735,0.00019572,2]
[358558372,1745261437996,-6166.15073266,0.00019573,2]
[358558373,1745261438009,-16668.18480002,0.00019573,2]
[358558374,1745261438057,-149.60474373,0.00019573,2]
[358558375,1745261438092,-916.05972359,0.00019573,2]
[358558376,1745261438102,-500.0,0.00019808,2]
[358558377,1745261438111,-200.0,0.00019839,2]
[358558378,1745261438120,-200.0,0.0001984,2]
[358558399,1745261438334,-200.0,0.0001984,2]
[358558401,1745261438344,-763.68,0.00019851,2]
[358558404,1745261438354,-1000.0,0.00019886,2]
[358558406,1745261438364,-500.0,0.00019886,2]
[358558408,1745261438373,-767.157,0.00019886,2]
[358558410,1745261438382,-896.7283,0.00019886,2]
[358558412,1745261438390,-867.8621,0.00019886,2]
[358558414,1745261438400,-1000.0,0.00019886,2]
[358558416,1745261438409,-281.3369,0.00019886,2]
[358558418,1745261438418,-2500.0,0.00019886,2]
[358558420,1745261438427,-13880.7727,0.00019899,2]
[358558422,1745261438436,-164.70128771,0.000199,2]
[358558424,1745261438445,-739.13121548,0.000199,2]
[358558426,1745261438454,-2539.288,0.000199,2]
[358558428,1745261438463,-171.892,0.000199,2]
[358558430,1745261438472,-781.90256628,0.000199,2]
[358558432,1745261438482,-2538.2260823,0.000199,2]
[358558433,1745261438491,-21454.86,0.00019919,2]
[358558435,1745261438500,-300.0,0.00019949,2]
[358558437,1745261438509,-500.0,0.00019973,2]
[358558439,1745261438518,-165.63823045,0.00019973,2]
[358558441,1745261438527,-500.0,0.00019973,2]
[358558443,1745261438535,-15486.16,0.00019976,2]
[358558445,1745261438544,-450.98,0.0001998,2]
[358558447,1745261438553,-130106.8538856,0.00019986,2]
[358558449,1745261438562,-3432.6463015,0.00019986,2]
[358558451,1745261438571,-34609.3467921,0.00019986,2]
[358558453,1745261438580,-6044.4425544,0.00019986,2]
[358558455,1745261438589,-14781.5541215,0.00019986,2]
[358558457,1745261438598,-819.0402585,0.00019986,2]
[358558459,1745261438607,-15486.16,0.0001999,2]
[358558460,1745261438616,-660.38606292,0.0001999,2]
[358558462,1745261438625,-660.38606292,0.0001999,2]
[358558464,1745261438634,-660.38606292,0.0001999,2]
[358558466,1745261438643,-300.0,0.00019999,2]
[358558468,1745261438655,-300.0,0.00019999,2]
[358558470,1745261438665,-500.0,0.00019999,2]
[358558472,1745261438674,-500.0,0.00019999,2]
[358558474,1745261438683,-500.0,0.00019999,2]
[358558476,1745261438693,-500.0,0.00019999,2]
[358558478,1745261438702,-500.0,0.00019999,2]
[358558480,1745261438711,-500.0,0.00019999,2]
[358558482,1745261438720,-300.0,0.00019999,2]
[358558484,1745261438730,-500.0,0.00019999,2]
[358558486,1745261438740,-300.0,0.00019999,2]
[358558488,1745261438749,-300.0,0.00019999,2]
[358558490,1745261438758,-500.0,0.00019999,2]
[358558492,1745261438767,-500.0,0.00019999,2]
[358558494,1745261438776,-802.0,0.0002,2]
[358558496,1745261438785,-1089627.43104464,0.0002,2]
[358558498,1745261438794,-433363.81969095,0.0002,2]
[358558501,1745261438807,-2955771.08740354,0.0002,2]
[358558556,1745261440030,-1185189.89375933,0.0002,2]
[358558557,1745261440040,-151.0,0.0002,2]
[358558558,1745261440049,-244.00374545,0.0002,2]
[358558559,1745261440058,-39401.46989181,0.0002,2]
[358558560,1745261440067,-39401.46989181,0.0002,2]
[358558561,1745261440076,-39401.46989181,0.0002,2]
[358558562,1745261440085,-2000.0,0.0002,4]
[358558563,1745261440094,-421.33032667,0.00020025,2]
[358558564,1745261440103,-500.0,0.00020137,2]
[358558565,1745261440112,-21017.33,0.00020145,2]
[358558566,1745261440122,-189.24,0.00020158,2]
[358558567,1745261440131,-166.67,0.0002016,2]
[358558568,1745261440141,-500.0,0.00020192,2]
[358558569,1745261440151,-500.0,0.00020548,2]
[358558570,1745261440161,-300.0,0.00020811,2]
[358558571,1745261440170,-250.0,0.00021,2]
[358558572,1745261440179,-250.0,0.00021047,2]
[358558573,1745261440188,-500.0,0.00021096,2]
[358558574,1745261440197,-5694.43681692,0.00021301,2]
[358558575,1745261440206,-233.42,0.00021421,2]
[358558576,1745261440215,-420.0,0.00021424,2]
[358558577,1745261440224,-250.0,0.00021529,2]
[358558578,1745261440234,-1000.0,0.00021683,2]
[358558579,1745261440243,-250.0,0.00021716,2]
[358558580,1745261440253,-150.0,0.0002178,2]
[358558581,1745261440263,-150.0,0.0002178,2]
[358558582,1745261440272,-522.0,0.0002189,2]
[358558583,1745261440282,-3263.8,0.00022,2]
[358558584,1745261440291,-304.01,0.00022,2]
[358558585,1745261440300,-169.0,0.00022,2]
[358558586,1745261440309,-763.68,0.00022115,2]
[358558587,1745261440318,-300.0,0.00022181,2]
[358558588,1745261440327,-169.0,0.00022192,2]
[358558589,1745261440337,-94968.33011776,0.000225,2]
[358558590,1745261440346,-300.0,0.00023,2]
[358558591,1745261440355,-169.0,0.00023014,2]
[358558592,1745261440364,-587.0,0.00023451,2]
[358558593,1745261440374,-300.0,0.00024,2]
[358558594,1745261440383,-1000.0,0.00024093,2]
[358558595,1745261440392,-739.13121545,0.00024147,2]
[358558596,1745261440401,-174.0,0.00024164,2]
[358558597,1745261440411,-300.0,0.0002424,2]
[358558598,1745261440420,-763.68,0.00024379,2]
[358558599,1745261440429,-300.0,0.0002448,2]
[358558600,1745261440439,-174.87,0.00024658,2]
[358558601,1745261440448,-221.547183,0.00024674,2]
[358558602,1745261440457,-300.0,0.0002472,2]
[358558603,1745261440467,-2500.0,0.0002479,3]
[358558604,1745261440477,-500.0,0.00024799,2]
[358558605,1745261440487,-500.0,0.00024799,2]
[358558606,1745261440496,-500.0,0.00024799,2]
[358558607,1745261440505,-500.0,0.00024799,2]
[358558608,1745261440514,-500.0,0.00024799,2]
[358558609,1745261440523,-300.0,0.00024799,10]
[358558610,1745261440532,-500.0,0.00024799,2]
[358558611,1745261440541,-300.0,0.00024799,10]
[358558612,1745261440550,-500.0,0.00024799,2]
[358558614,1745261440560,-601402.880529,0.000248,2]
[358558616,1745261440569,-500.0,0.00024873,2]
[358558617,1745261440578,-500.0,0.00024873,2]
[358558618,1745261440587,-643.34112161,0.00024873,2]
[358558619,1745261440597,-500.0,0.00024873,2]
[358558620,1745261440605,-520.06263033,0.00024873,2]
[358558621,1745261440615,-211.08872435,0.00024873,2]
[358558622,1745261440624,-500.0,0.00024899,2]
[358558623,1745261440633,-500.0,0.00024899,2]
[358558624,1745261440642,-500.0,0.00024899,2]
[358558625,1745261440655,-500.0,0.00024899,2]
[358558626,1745261440664,-500.0,0.00024899,2]
[358558627,1745261440673,-300.0,0.00024899,10]
[358558628,1745261440682,-500.0,0.00024899,2]
[358558629,1745261440693,-300.0,0.00024899,10]
[358558630,1745261440702,-500.0,0.00024899,2]
[358558631,1745261440711,-121737.820629,0.000249,2]
[358558632,1745261440721,-364.86093132,0.0002496,2]
[358558633,1745261440730,-3263.8,0.00025,2]
[358558634,1745261440739,-350.0,0.00025,2]
[358558635,1745261440747,-941.0,0.000253,2]
[358558636,1745261440757,-990.9,0.000253,2]
[358558637,1745261440767,-372.0,0.000253,2]
[358558638,1745261440776,-628.10016536,0.00025583,2]
[358558639,1745261440785,-823.0,0.0002567,2]
[358558640,1745261440794,-1000.0,0.00026502,2]
[358558641,1745261440803,-169.0,0.00026581,2]
[358558642,1745261440812,-763.68,0.00026643,2]
[358558643,1745261440821,-747.57,0.00026963,2]
[358558644,1745261440830,-400.0,0.00027,2]
[358558645,1745261440839,-175.46,0.00027397,2]
[358558646,1745261440848,-151.42,0.00027397,2]
[358558647,1745261440857,-2000.0,0.000275,4]
[358558648,1745261440866,-169.0,0.00027616,2]
[358558649,1745261440875,-2055.0,0.00027778,2]
[358558650,1745261440885,-1332.0,0.00027778,2]
[358558651,1745261440893,-916.0,0.00027778,2]
[358558652,1745261440902,-795.0,0.00027778,2]
[358558653,1745261440911,-1283.0,0.00027778,2]
[358558654,1745261440920,-546.0,0.00027778,2]
[358558655,1745261440929,-908.0,0.00027778,2]
[358558656,1745261440939,-1442.0,0.00027778,2]
[358558657,1745261440948,-577.0,0.00027778,2]
[358558658,1745261440957,-4161.0,0.00027778,2]
[358558659,1745261440965,-3978.0,0.00027778,2]
[358558660,1745261440974,-295.828,0.00027778,2]
[358558661,1745261440983,-160.172,0.00027778,2]
[358558662,1745261440993,-868.0,0.00027778,2]
[358558663,1745261441002,-1152.0,0.00028099,2]
[358558664,1745261441011,-739.13121545,0.00028393,2]
[358558665,1745261441020,-763.68,0.00028907,2]
[358558666,1745261441029,-1000.0,0.00028911,2]
[358558667,1745261441038,-169.0,0.00028997,2]
[358558668,1745261441047,-70329.10316133,0.00029,2]
[358558669,1745261441056,-3263.8,0.00029,2]
[358558670,1745261441065,-450.0,0.00029,2]
[358558671,1745261441075,-150.0,0.00029769,2]
[358558672,1745261441084,-235.15102087,0.00029769,2]
[358558673,1745261441093,-150.0,0.00029769,2]
[358558674,1745261441103,-162.40807312,0.00029769,2]
[358558675,1745261441112,-214.55824792,0.00029769,2]
[358558676,1745261441120,-150.0,0.00029769,2]
[358558677,1745261441129,-449.77943304,0.00029769,2]
[358558678,1745261441138,-150.73,0.0003,2]
[358558679,1745261441147,-150.73,0.0003,2]
[358558680,1745261441155,-150.73,0.0003,2]
[358558681,1745261441164,-150.73,0.0003,2]
[358558682,1745261441173,-150.73,0.0003,2]
[358558683,1745261441183,-150.73,0.0003,2]
[358558684,1745261441192,-150.73,0.0003,2]
[358558685,1745261441200,-150.73,0.0003,2]
[358558686,1745261441209,-150.73,0.0003,2]
[358558687,1745261441219,-150.73,0.0003,2]
[358558688,1745261441227,-798.76,0.0003011,2]
[358558689,1745261441236,-222.0,0.0003035,2]
[358558690,1745261441246,-1000.0,0.00030352,5]
[358558691,1745261441255,-1613.0,0.00030757,2]
[358558692,1745261441264,-2055.0,0.00030778,2]
[358558693,1745261441273,-1332.0,0.00030778,2]
[358558694,1745261441282,-916.0,0.00030778,2]
[358558695,1745261441292,-795.0,0.00030778,2]
[358558696,1745261441301,-1283.0,0.00030778,2]
[358558697,1745261441310,-546.0,0.00030778,2]
[358558698,1745261441319,-908.0,0.00030778,2]
[358558699,1745261441329,-1442.0,0.00030778,2]
[358558700,1745261441337,-577.0,0.00030778,2]
[358558701,1745261441346,-4161.0,0.00030778,2]
[358558702,1745261441355,-3978.0,0.00030778,2]
[358558703,1745261441364,-152.0,0.00030778,2]
[358558704,1745261441374,-868.0,0.00030778,2]
[358558705,1745261441384,-500.0,0.00031,2]
[358558706,1745261441393,-763.68,0.00031171,2]
[358558707,1745261441402,-222.0,0.0003251,2]
[358558708,1745261441411,-739.13121545,0.0003264,2]
[358558709,1745261441421,-452.19,0.00032757,2]
[358558710,1745261441430,-513.52,0.00032757,2]
[358558711,1745261441439,-500.0,0.00032876,120]
[358558712,1745261441448,-500.0,0.00032876,120]
[358558713,1745261441457,-386.62276163,0.00032876,120]
[358558714,1745261441467,-1500.0,0.00032877,120]
[358558715,1745261441476,-163.78,0.00032877,30]
[358558716,1745261441486,-511.79,0.00032904,30]
[358558717,1745261441495,-446.67,0.00032939,2]
[358558718,1745261441505,-550.0,0.00033,2]
[358558719,1745261441515,-584.05,0.00033,2]
[358558720,1745261441524,-150.0,0.00033033,2]
[358558721,1745261441534,-3263.8,0.000331,14]
[358558722,1745261441544,-763.68,0.00033435,2]
[358558723,1745261441553,-781.90256626,0.00033462,2]
[358558724,1745261441563,-2538.22608229,0.00033462,2]
[358558725,1745261441573,-2258.0,0.00033668,3]
[358558726,1745261441583,-5706.16093087,0.000337,11]
[358558727,1745261441592,-2055.0,0.00033778,2]
[358558728,1745261441602,-717.183,0.00033778,2]
[358558729,1745261441611,-916.0,0.00033778,2]
[358558730,1745261441621,-795.0,0.00033778,2]
[358558731,1745261441630,-1283.0,0.00033778,2]
[358558732,1745261441640,-546.0,0.00033778,2]
[358558733,1745261441651,-908.0,0.00033778,2]
[358558734,1745261441661,-1442.0,0.00033778,2]
[358558735,1745261441670,-577.0,0.00033778,2]
[358558736,1745261441680,-4161.0,0.00033778,2]
[358558737,1745261441690,-1496.025,0.00033778,2]
[358558738,1745261441702,-152.0,0.00033778,2]
[358558739,1745261441711,-868.0,0.00033778,2]
[358558740,1745261441720,-500.0,0.00034247,2]
[358558741,1745261441732,-871.33,0.00034474,2]
[358558742,1745261441742,-692.78,0.00034475,2]
[358558743,1745261441751,-797.18,0.00034475,2]
[358558744,1745261441761,-150.0,0.00034548,10]
[358558745,1745261441770,-222.0,0.0003467,2]
[358558746,1745261441780,-175.46,0.00034703,2]
[358558747,1745261441790,-600.0,0.00035,2]
[358558748,1745261441799,-584.05,0.00035,2]
[358558749,1745261441809,-2000.0,0.00035,4]
[358558750,1745261441819,-500.0,0.00035616,5]
[358558751,1745261441829,-150.0,0.00035616,5]
[358558752,1745261441838,-500.0,0.00035616,2]
[358558753,1745261441847,-250.0,0.00035616,2]
[358558754,1745261441857,-500.0,0.00035616,2]
[358558755,1745261441866,-500.0,0.00035616,2]
[358558756,1745261441876,-150.0,0.00035616,2]
[358558757,1745261441885,-250.0,0.00035616,2]
[358558758,1745261441894,-500.0,0.00035616,2]
[358558759,1745261441904,-500.0,0.00035671,5]
[358558760,1745261441913,-150.0,0.00035671,5]
[358558761,1745261441923,-500.0,0.00035671,2]
[358558762,1745261441932,-500.0,0.00035671,2]
[358558763,1745261441942,-500.0,0.00035671,2]
[358558764,1745261441951,-150.0,0.00035671,2]
[358558765,1745261441960,-610.28831672,0.00035671,2]
[358558766,1745261442132,-763.68,0.00035699,2]
[358558767,1745261442142,-558.36432813,0.00035726,5]
[358558768,1745261442151,-500.0,0.00035726,2]
[358558769,1745261442159,-500.0,0.00035726,2]
[358558770,1745261442169,-500.0,0.00035726,2]
[358558771,1745261442178,-150.0,0.00035726,2]
[358558772,1745261442187,-500.0,0.0003578,2]
[358558773,1745261442196,-500.0,0.0003578,2]
[358558774,1745261442205,-232.0,0.0003578,2]
[358558775,1745261442214,-244.0,0.0003578,2]
[358558776,1745261442224,-500.0,0.00035835,2]
[358558777,1745261442233,-500.0,0.0003589,2]
[358558778,1745261442243,-3561.2,0.0003593,7]
[358558779,1745261442252,-500.0,0.00035945,2]
[358558780,1745261442261,-500.0,0.00036,2]
[358558781,1745261442270,-500.0,0.00036054,2]
[358558782,1745261442280,-500.0,0.00036109,2]
[358558783,1745261442289,-500.0,0.00036164,2]
[358558784,1745261442298,-500.0,0.00036219,2]
[358558785,1745261442308,-500.0,0.00036274,2]
[358558786,1745261442317,-585.01005391,0.00036328,2]
[358558787,1745261442326,-2583.0,0.00036411,120]
[358558788,1745261442335,-305.04,0.00036456,2]
[358558789,1745261442344,-320.59,0.00036456,2]
[358558790,1745261442353,-825.23,0.00036456,2]
[358558791,1745261442362,-150.0,0.00036456,2]
[358558792,1745261442372,-150.0,0.00036456,2]
[358558793,1745261442381,-150.0,0.00036456,2]
[358558794,1745261442390,-150.0,0.00036456,2]
[358558795,1745261442399,-311.0,0.00036456,2]
[358558796,1745261442409,-160.65,0.00036456,2]
[358558797,1745261442418,-4620.6691742,0.00036513,4]
[358558798,1745261442427,-949.821,0.00036778,2]
[358558799,1745261442436,-749.11,0.00036778,2]
[358558800,1745261442446,-795.0,0.00036778,2]
[358558801,1745261442455,-1107.306,0.00036778,2]
[358558802,1745261442464,-178.979,0.00036778,2]
[358558803,1745261442474,-908.0,0.00036778,2]
[358558804,1745261442483,-1324.922,0.00036778,2]
[358558805,1745261442492,-577.0,0.00036778,2]
[358558806,1745261442501,-3421.757,0.00036778,2]
[358558807,1745261442511,-152.0,0.00036778,2]
[358558808,1745261442519,-701.143,0.00036778,2]
[358558809,1745261442528,-222.0,0.0003683,2]
[358558810,1745261442537,-3162.0,0.00036853,3]
[358558811,1745261442547,-739.13121545,0.00036886,2]
[358558812,1745261442555,-150.0,0.00036983,3]
[358558813,1745261442565,-150.0,0.00036983,3]
[358558814,1745261442574,-150.0,0.00036983,3]
[358558815,1745261442583,-150.0,0.00036983,3]
[358558816,1745261442592,-150.0,0.00036983,3]
[358558817,1745261442601,-150.0,0.00036983,3]
[358558818,1745261442610,-1000.0,0.00037,3]
[358558819,1745261442619,-1000.0,0.00037,3]
[358558820,1745261442628,-1000.0,0.00037,4]
[358558821,1745261442637,-1000.0,0.00037,4]
[358558823,1745261442646,-1000.0,0.00037,4]
[358558824,1745261442660,-1000.0,0.00037,3]
[358558825,1745261442669,-1014.0,0.00037,3]
[358558826,1745261442679,-650.0,0.00037,2]
[358558827,1745261442689,-150.0,0.00037149,2]
[358558828,1745261442700,-449.47,0.00037149,2]
[358558829,1745261442710,-150.0,0.00037149,2]
[358558830,1745261442720,-150.0,0.00037149,2]
[358558831,1745261442730,-449.47,0.00037149,2]
[358558832,1745261442740,-150.0,0.00037149,2]
[358558835,1745261442748,-449.47,0.00037149,2]
[358558836,1745261442758,-150.0,0.00037149,2]
[358558838,1745261442768,-150.0,0.00037149,2]
[358558839,1745261442777,-410.5,0.00037149,2]
[358558840,1745261442787,-346.02,0.00037149,2]
[358558841,1745261442796,-150.0,0.00037149,2]
[358558842,1745261442805,-161.39,0.00037278,2]
[358558843,1745261442814,-720.37,0.00037278,2]
[358558844,1745261442823,-150.0,0.00037278,2]
[358558845,1745261442833,-150.0,0.00037278,2]
[358558846,1745261442842,-161.39,0.00037278,2]
[358558847,1745261442852,-161.39,0.00037278,2]
[358558848,1745261442861,-698.76,0.00037278,2]
[358558849,1745261442870,-161.39,0.00037278,2]
[358558850,1745261442880,-161.39,0.00037278,2]
[358558851,1745261442890,-161.39,0.00037278,2]
[358558852,1745261442900,-500.0,0.00037435,7]
[358558853,1745261442909,-514.57,0.00037435,7]
[358558854,1745261442918,-500.0,0.00037435,7]
[358558855,1745261442927,-500.0,0.00037435,7]
[358558856,1745261442936,-500.0,0.00037435,7]
[358558857,1745261442945,-500.0,0.00037435,7]
[358558858,1745261442954,-500.0,0.00037435,7]
[358558859,1745261442963,-500.0,0.00037435,7]
[358558860,1745261442972,-500.0,0.00037435,7]
[358558861,1745261442980,-535.05,0.00037435,7]
[358558862,1745261442990,-300.0,0.0003746,2]
[358558863,1745261442999,-150.0,0.0003746,2]
[358558864,1745261443008,-336.76,0.0003746,2]
[358558865,1745261443018,-307.77,0.0003746,2]
[358558866,1745261443028,-150.0,0.00037498,2]
[358558867,1745261443037,-166.34,0.00037498,2]
[358558868,1745261443047,-449.47,0.00037762,2]
[358558869,1745261443056,-318.18,0.00037762,2]
[358558870,1745261443065,-317.93,0.00037762,2]
[358558871,1745261443074,-157.15,0.00037762,2]
[358558872,1745261443084,-701.36,0.00037763,2]
[358558873,1745261443094,-763.68,0.00037963,2]
[358558874,1745261443103,-150.0,0.00037971,2]
[358558875,1745261443112,-161.39,0.00037971,2]
[358558876,1745261443122,-350.68,0.00037971,2]
[358558877,1745261443132,-150.0,0.00037971,2]
[358558878,1745261443141,-161.39,0.00037971,2]
[358558879,1745261443150,-150.0,0.00037971,2]
[358558880,1745261443160,-350.68,0.00037971,2]
[358558881,1745261443169,-161.39,0.00037971,2]
[358558882,1745261443178,-350.68,0.00037971,2]
[358558883,1745261443188,-300.0,0.00037971,2]
[358558884,1745261443197,-350.68,0.00037971,2]
[358558885,1745261443206,-161.39,0.00037971,2]
[358558886,1745261443215,-171.56,0.00037971,2]
[358558887,1745261443224,-480.45,0.00037971,2]
[358558889,1745261443233,-584.05,0.00038,2]
[358558891,1745261443243,-346.02,0.0003832,2]
[358558893,1745261443252,-300.0,0.0003832,2]
[358558894,1745261443262,-1000.0,0.00038356,2]
[358558895,1745261443271,-200.0,0.000384,35]
[358558896,1745261443280,-449.47,0.00038666,2]
[358558897,1745261443289,-150.0,0.00038666,2]
[358558898,1745261443299,-161.39,0.00038666,2]